Cogmind - Beta 16 @@@ ROGUE MODE // 2025.12.28 @ 15:43:30 Player: skilledspacepolice Result: Destroyed by XP-T4X(R) with Subdweller Machine Gun Performance ------------- Evolutions (0) 0 Regions Visited (2) 400 Robots Destroyed (7) 35 Value Destroyed (281) 281 Prototype IDs (0) 0 Alien Tech Used (0) 0 Bonus (0) 0 TOTAL SCORE: 716 Bonus ------- None Cogmind --------- Core Integrity 0/250 Matter 277/300 Energy 52/100 System Corruption 0% Temperature Cool (0) Movement Treading (160) Location -10/Subcaves Parts ------- > --- POWER (1) -------- (None) > --- PROPULSION (2) --- Light Treads Spiked Treads > --- UTILITY (2) ------ Cooling System Small Storage Unit > --- WEAPON (2) ------- Subdweller Beam Cannon Battle Rifle > --- INVENTORY (8) ---- Subdweller Power Source Tower Shield Makeshift Hacking Suite Scrap Shield Fragment (48) Scrap Shield Fragment (47) Scrap Shield Fragment (47) Peak State ------------ > --- POWER ------------ Subdweller Power Source > --- PROPULSION ------- Light Treads Spiked Treads > --- UTILITY ---------- Cooling System Small Storage Unit > --- WEAPON ----------- Light EM Pulse Cannon Light EM Pulse Cannon > --- INVENTORY -------- Subdweller Power Source Tower Shield Makeshift Hacking Suite Light EM Pulse Cannon Scrap Shield Fragment Scrap Shield Fragment Scrap Shield Fragment [Rating: 15] Favorites ----------- Power Ion Engine Engine Ion Engine Propulsion Light Treads Treads Light Treads Utility Small Storage Unit Device Cooling System Storage Small Storage Unit Weapon Light EM Pulse Cannon Energy Cannon Light EM Pulse Cannon Ballistic Gun Assault Rifle Build | -11 -10 -10 ------- Run | Yrd Mat Sub Slots Evolved . | . . . Power . | . . . Propulsion . | . . . Utility . | . . . Weapon . | . . . Parts Attached 16 | 6 4 6 Power 3 | 1 1 1 Engine 3 | 1 1 1 Core . | . . . Reactor . | . . . Propulsion 3 | 2 . 1 Treads 3 | 2 . 1 Leg . | . . . Wheel . | . . . Hover . | . . . Flight . | . . . Utility 2 | 1 1 . Device 1 | . 1 . Storage 1 | 1 . . Processor . | . . . Hackware . | . . . Protection . | . . . Artifact . | . . . Weapon 8 | 2 2 4 Energy Gun . | . . . Energy Cannon 5 | . 2 3 Ballistic Gun 3 | 2 . 1 Ballistic Cannon . | . . . Launcher . | . . . Special Weapon . | . . . Impact Weapon . | . . . Slashing Weapon . | . . . Piercing Weapon . | . . . Special Melee Weapon . | . . . Unidentified Prototypes . | . . . Parts Lost 3 | . . 3 Power . | . . . Propulsion 1 | . . 1 Utility . | . . . Weapon 2 | . . 2 Highest Loss Streak 2 | . . 2 To Critical Strikes . | . . . Average Backups 3 | 1 2 3 Power . | . . . Propulsion . | . . . Utility 1 | . . 1 Weapon 1 | . 1 1 Tool/Special . | . . . Unused Backups 3 | . . 3 Power 1 | . . 1 Propulsion . | . . . Utility 2 | . . 2 Weapon . | . . . Tool/Special . | . . . Average Slot Usage (%) 97 | . 97 96 Engine 12 | . 14 12 Treads 27 | . 28 27 Device 13 | . 12 14 Storage 14 | . 14 14 Energy Cannon 26 | . 24 27 Peak Build Rating 15 | 6 10 15 Average Rating 11 | 4 9 12 On Entrance 5 | . 6 10 Avg Prop Armor Cover (%) . | . . . Naked Turns . | . . . Heaviest Build 20 | 14 20 20 Greatest Support 40 | 40 40 40 Greatest Overweight (x) . | . . . Average Overweight (x) . | . . . Largest Inventory Capacity 8 | 8 8 8 Average Capacity 7 | 6 8 8 Most Carried 8 | 3 5 8 Average Carried 5 | 1 2 6 Final Capacity 8 | 8 8 8 Final Carried 7 | 1 2 7 Class Distribution -------------------- 100% | Mutant Dominant Class ---------------- Mutant | -10/Materials Mutant | -10/Subcaves Resources | -11 -10 -10 ----------- Run | Yrd Mat Sub Matter Collected 345 | 170 116 59 Remotely . | . . . Salvage Created 347 | . 99 248 Parts 14 | . 3 11 Haulers Intercepted . | . . . Recyclers Shooed . | . . . Parts Field Recycled . | . . . Retrieved Matter . | . . . Parts Self-Destructed 6 | . . 6 Prevented . | . . . Parts Restored . | . . . Kills | -11 -10 -10 ------- Run | Yrd Mat Sub Combat Hostiles Destroyed 7 | . 2 5 Cannons 2 | . . 2 AOE 2 | . 2 . Classes Destroyed 2 | . 1 1 Grunt 2 | . 2 . Subdweller 5 | . . 5 Best Kill Streak 2 | . 2 2 Combat Bots Only 2 | . 2 2 Max Kills in Single Turn 1 | . 1 1 Gunslinging . | . . . Exploded 1 | . 1 . Melee . | . . . Uniques/NPCs Destroyed . | . . . Combat | -11 -10 -10 -------- Run | Yrd Mat Sub Hostile Shots Fired 32 | . 4 28 Missed 11 | . 2 9 Hits 21 | . 2 19 Projectile 21 | . 2 19 Damage Taken 853 | . 211 642 Core 257 | . 105 152 Absorbed by Shields . | . . . Core Remaining (%) 100 | 100 . . Volleys Fired 35 | . 3 32 Largest 2 | . 2 2 Hottest 112 | . 112 112 Shots Fired 68 | . 6 62 Gun 1 | . . 1 Cannon 67 | . 6 61 Launcher . | . . . Special . | . . . Kinetic 1 | . . 1 Thermal 1 | . . 1 Explosive . | . . . Electromagnetic 66 | . 6 60 Robot Hit Streak 15 | . 2 15 Robot Miss Streak 2 | . 2 1 Penetration Max . | . . . Secondary Targets . | . . . Shots Hit Robots 30 | . 3 27 Core Hits 10 | . 2 8 Critical Kills . | . . . Critical Parts Destroyed . | . . . Critical Strikes 1 | . . 1 Corrupt 1 | . . 1 Melee Attacks . | . . . Impact . | . . . Slashing . | . . . Piercing . | . . . Sneak Attacks . | . . . Combat Hostiles . | . . . Follow-up Attacks . | . . . Damage Inflicted 747 | . 174 573 Guns . | . . . Cannons 645 | . 72 573 Explosions 102 | . 102 . Melee . | . . . Ramming . | . . . Kinetic . | . . . Thermal 130 | . 102 28 Explosive . | . . . Electromagnetic 617 | . 72 545 Impact . | . . . Slashing . | . . . Piercing . | . . . Highest Corruption . | . . . Average Corruption . | . . . Corruption Purged . | . . . Corruption Blocked . | . . . Overload Shots . | . . . Overflow Damage . | . . . Projectiles . | . . . Explosions . | . . . Melee . | . . . Knockbacks . | . . . Impact . | . . . Kinetic . | . . . Secondary . | . . . Self-Inflicted Damage . | . . . Shots . | . . . Rammed . | . . . Targets Rammed . | . . . Kicked . | . . . Crushed . | . . . Highest Temperature 6 | . 4 6 Average Temperature 4 | . 4 4 Received Heat Transfer 87 | . 15 72 Siege Activations . | . . . Martial Activations . | . . . Shielding Activations . | . . . Robots Disrupted . | . . . Combat Hostiles . | . . . Robots Corrupted 3 | . . 3 Combat Hostiles 3 | . . 3 Parts Fried 4 | . . 4 Impact Corruptions . | . . . Robots Melted . | . . . Combat Hostiles . | . . . Parts Melted . | . . . Heat Transferred 187 | . 150 37 Parts Sabotaged . | . . . Parts Stolen . | . . . Parts Stripped . | . . . Power Chain Reactions 2 | . 2 . Alert | -11 -10 -10 ------- Run | Yrd Mat Sub Maximum Alert Level . | . . . Low Security (%) 100 | 100 100 . Level 1 . | . . . Level 2 . | . . . Level 3 . | . . . Level 4 . | . . . Level 5 . | . . . High Security . | . . . Max Security . | . . . Peak Influence 58 | . 58 . Initial . | . . . Average 5 | . 6 . Influence Increases 63 | . 63 . Destroy 0b10 Robot/C 40 | . 40 . Destroy Leader 10 | . 10 . Successful Hack 5 | . 5 . Destroy Structure 8 | . 8 . Influence Decreases 63 | . 41 22 Entered New Map 11 | . . 11 Time Decay 52 | . 41 11 Squads Dispatched 1 | . 1 . Investigation 1 | . 1 . Extermination . | . . . Reinforcement . | . . . Assault . | . . . Garrison . | . . . Intercept . | . . . Searches Triggered . | . . . Construction Impeded . | . . . Haulers Reinforced . | . . . Active Scanning Responses . | . . . Cargo Convoy Interrupts . | . . . Stealth | -11 -10 -10 --------- Run | Yrd Mat Sub Distress Signals . | . . . Communications Jammed . | . . . Distress Signals . | . . . Times Spotted 13 | . 3 10 Peak Tracking Total 2 | . 2 2 Tactical Retreats 2 | . . 2 Traps | -11 -10 -10 ------- Run | Yrd Mat Sub Traps Triggered 6 | . 2 4 Indirectly . | . . . Trap Hack Attempts . | . . . Triggered . | . . . Disarmed . | . . . Reprogrammed . | . . . Reused . | . . . Traps Extracted . | . . . Installed . | . . . Triggered . | . . . Machines | -11 -10 -10 ---------- Run | Yrd Mat Sub Machines Disabled 1 | . . 1 Max in Single Turn 1 | . . 1 Machines Repaired . | . . . Machines Dismantled . | . . . Machines Sabotaged . | . . . Overloaded Fab Kills . | . . . Hacking | -11 -10 -10 --------- Run | Yrd Mat Sub Machines Accessed 4 | . 3 1 Terminals 2 | . 2 . Fabricators . | . . . Repair Stations . | . . . Recycling Units 1 | . 1 . Scanalyzers . | . . . Garrison Access . | . . . Total Hacks 15 | . 7 8 Successful 11 | . 3 8 Failed 4 | . 4 . Catastrophic . | . . . Database Lockouts . | . . . Manual . | . . . Terminals 4 | . 4 . Fabricators . | . . . Repair Stations . | . . . Recycling Units 3 | . 3 . Scanalyzers . | . . . Garrison Access . | . . . Terminal Hacks 10 | . 2 8 Record 8 | . . 8 Robot Analysis 1 | . 1 . Zone Layout 1 | . 1 . Fabricator Hacks . | . . . Repair Station Hacks . | . . . Recycling Unit Hacks 1 | . 1 . Report Inventory 1 | . 1 . Scanalyzer . | . . . Garrison Access Hacks . | . . . Unauthorized Hacks . | . . . Terminals . | . . . Fabricators . | . . . Repair Stations . | . . . Recycling Units . | . . . Scanalyzers . | . . . Garrison Access . | . . . Data Cores Recovered . | . . . Used . | . . . Hacking Detections 2 | . 2 . Full Trace Events 1 | . 1 . Feedback Events . | . . . Feedback Blocked . | . . . Robot Schematics Acquired . | . . . Robots Built . | . . . Authchips . | . . . Time . | . . . Total Robot Build Rating . | . . . Part Schematics Acquired . | . . . Parts Built . | . . . Authchips . | . . . Time . | . . . Total Part Build Rating . | . . . Part Studies Acquired . | . . . Parts Repaired . | . . . Time . | . . . Parts Recycled . | . . . Recycled Matter . | . . . Retrieved Matter . | . . . Retrieved Components . | . . . Parts Scanalyzed . | . . . Part Schematics Acquired . | . . . Parts Damaged . | . . . Bothacking | -11 -10 -10 ------------ Run | Yrd Mat Sub Used RIF Installer . | . . . Robots Hacked . | . . . Non-combat . | . . . Combat . | . . . Robot Hacks Applied . | . . . Relay Couplers Released . | . . . Fabnet Peak Effective % . | . . . Robots Rewired . | . . . Allies Hacked . | . . . Hacks Repelled . | . . . Allies | -11 -10 -10 -------- Run | Yrd Mat Sub Total Allies . | . . . Largest Group . | . . . Highest-Rated Group . | . . . Highest-Rated Ally . | . . . Total Orders . | . . . Ally Attacks . | . . . Total Damage . | . . . Kills . | . . . Allies Corrupted . | . . . Allies Melted . | . . . Intel | -11 -10 -10 ------- Run | Yrd Mat Sub Active Infowar (turns) . | . . . Robot Analysis Total 1 | . 1 . Derelict Logs Recovered 1 | . . 1 Drone Launches . | . . . Drone Recoveries . | . . . Exploration | -11 -10 -10 ------------- Run | Yrd Mat Sub Turns Passed 2027 | 59 420 1548 Spaces Moved 1154 | 31 249 874 Core 4 | 4 . . Treads 1150 | 27 249 874 Legs . | . . . Wheels . | . . . Hover . | . . . Flight . | . . . Fastest Speed 50 | 50 160 160 Average Speed 159 | 145 160 160 Slowest Speed 160 | 160 160 160 Overloaded Moves . | . . . Propulsion Burnouts . | . . . Robots Hopped . | . . . Potential Cave-ins . | . . . Cave-ins Triggered . | . . . Exploration Rate (%) 32 | 4 39 53 Regions Visited 2 Branch Regions 1 Pre-discovered Areas . | . . . Known Exits Taken . | . . . Unknown Exits Taken 2 | 1 1 . Scrap Searched 1 | . . 1 Spaces Dug . | . . . Terrain Destroyed 7 | . 7 . Melee . | . . . Projectile . | . . . AOE 7 | . 7 . Terrain Rammed . | . . . Walls Destroyed . | . . . Machines Disabled . | . . . Actions | -11 -10 -10 --------- Run | Yrd Mat Sub Total 1269 | 45 266 958 Wait 31 | 2 3 26 Move 1152 | 30 248 874 Hop . | . . . Pick Up 24 | 7 5 12 Fast Attach 1 | . . 1 Attach 16 | 6 4 6 Detach . | . . . Swap . | . . . Drop 10 | . 3 7 Fire 35 | . 3 32 Melee . | . . . Ram . | . . . Kick . | . . . Crush . | . . . Escape Stasis . | . . . Rewire . | . . . Trap . | . . . Miscellaneous . | . . . Route ------- -11/Scrapyard -10/Materials (discovered 2 exits: [*Min] / *Sub) -10/Subcaves (discovered 1 exit: *Mat) History --------- Turn | Location | Event 23 | -11/Scrapyard | Discovered new exit (range 15) 60 | -11/Scrapyard | Entered Materials 228 | -10/Materials | Discovered new exit (range 9) 260 | -10/Materials | Discovered new exit (range 15) 309 | -10/Materials | Build established: Mutant 480 | -10/Materials | Entered Subcaves 533 | -10/Subcaves | Shifting Twisted Machinery released Spk. Treads 541 | -10/Subcaves | Shifting Twisted Machinery released Mak. Hacking Suite 603 | -10/Subcaves | Identified exit to Materials 1024 | -10/Subcaves | Core integrity fell below 50% 1072 | -10/Subcaves | Shifting Twisted Machinery released Sub. Power Source 1111 | -10/Subcaves | Shifting Twisted Machinery released Sub. Monowheel 1222 | -10/Subcaves | Visited 4L-MR0's lab 1257 | -10/Subcaves | Found Prototype Protection 1612 | -10/Subcaves | A swath of the cavern ceiling suddenly collapsed 1655 | -10/Subcaves | Core integrity fell below 20% 1987 | -10/Subcaves | Shifting Twisted Machinery released Sub. Beam Cannon 1988 | -10/Subcaves | Shifting Twisted Machinery released Battle Rifle 2028 | -10/Subcaves | Destroyed by XP-T4X(R) with Subdweller Machine Gun Last Messages --------------- Critical hit (Impale). Lgt. EM Pulse Cannon destroyed. Critical hit (Impale). Triggered Piercing Trap. Spikes shoot up from the floor. Critical hit (Impale). Acquired Lgt. EM Pulse Cannon. Subatomizers dissect the Corrupted Sub. Optics. Acquired 15 matter. Subatomizers dissect the Corrupted Sub. Optics. Sub. Power Source shoots sparks and powers down. Dropped Broken Sub. Power Source. Sub. Beam Cannon falls loose from the Twisted Machinery. Battle Rifle falls loose from the Twisted Machinery. Acquired Battle Rifle. Dropped Lgt. EM Pulse Cannon. Acquired Sub. Beam Cannon. Map ----- +----------------------------------------------------+ | ??????########?????????#####?###### ##?####?? | | ????????????????????????????????## ##?????? | | ????????????????????????????????# ##????? | | ????????????????????????????????# #????? | | ?????????????????????????????#### ######????? | | ?????????????????????????????# #### ###???????? | | ?????????????????????????????# #??# #???????? | | ?????????????????????????????# ### #???????? | | ?????????????????????????????# #???????? | | ?????????????????????????????## #???????? | | ?????????????????????????????## ##???????? | | ?????????????????????????????# ### | | ?????????????????????????????# #? | | ?????????????????????????????# ### #? | | ?????????????????????###?????## #?? #? | | ????????????????????## ######### ##??? #? | | ??????????????????### #??## ##????## ### | | ?????????????????## ???## #???????### | | ?????????????????? #????## #####????# | | ??????????????????? #??#??# ## ##?? | | ???????????????????? #?? ### #?? | | ?????????????????????# ### ## #?? | | ?????????????????????# R ### ##? | | ???????????????????### R #### ## | | ?????????????" ##### #??? ##### | | ?????????????" " @ ##??? #??## | | ?????????????" " #??? #???## ### | | ?????????????"##"" ### ## #??## ?????# #??? | | ???????????????# ?????### ##??? #?????# ##??? | | ????????????????????????## ######""#?????# ##??? | | ???????????????????????## ## ## "####?## ##?? | | ???????????????????????# " ### "## ### ##? | | ???????????????????????#""" ## ## | | ???????????????????????##""" ] | | ????????????????????????##" ] ##"" ## # | | ?????????????????????????#" """#### ######### | | ?????????????????????????#""" #??# #????????## | | ?????????????????????????#"" ? ##??????????# | | ?????????????????????????#"" #???????????? | | ????????????????????????? "" #???????????? | | ????????????????????????? "" ##???????????? | | ??????????????????????????"" ### #????????????? | | ???????????????????????????" #?#" #????????????? | | ???????????????????????????" ? """????????????? | | ???????????????????????????#" ? ""?????????????? | | ???????????????????????????#" ? "?????????????? | | ????????????????????????????? #?????????????????? | | ?????????????????????????????????????????????????? | | ?????????????????????????????????????????????????? | | ?????????????????????????????????????????????????? | +----------------------------------------------------+ Best States ------------- Heat Dissipation 47 Energy Generation 15 Energy Capacity 250 Matter Stores 300 Matter Capacity 300 Sight Range 16 Terrain Scan Density 10 Evasion (%) 40 Recoil Reduction 2 Item Schematics ----------------- None Robot Schematics ------------------ None Fabricated ------------ Nothing Repaired ---------- Nothing Studied --------- None Alien Tech Used ----------------- None Achievements -------------- None Challenges ------------ None Game ------ Seed AlloyFocalPlating Manual? 0 Play Time 00:23:50 Cumulative 6.6 hours Start 2025.12.28 @ 15:18:08 End 2025.12.28 @ 15:43:30 Sessions 1 Manual Loads 0 Difficulty Rogue Special Mode None Game No. 8 Rogue 8 Adventurer 0 Explorer 0 Win Type - Total 0 Types 0/0/0/0/0/0/0/0/0/0 Lore% 17 Gallery% 7 Achievement% 8 Wizard Run 0 Options --------- Layout 1 ASCII 0 Keyboard 0 Movement Mouse Keybinds 0 Fullscreen 1 Font 24/Smallcaps Map View 50x35 Zoom Use 0% Tactical HUD 0 Map Filters NONE Filters NONE Steam 1 RUN: f85ba879-a546-4b1b-8fa8-2305c9ab218e